Workbook

Sheet Przychód (sprzedaż)
B1: Dwanaście miesięcy | AD1: Nazwa firmy
B2: PROGNOZA ZYSKÓW I STRAT | AB2: POCZĄTEK ROKU OBRACHUNKOWEGO: | AC2: STY | AD2: =YEAR(TODAY()) -> 2017
D3: =UPPER(TEXT(DATE(RO_rok_pocz,RO_nr_miesiąca,1),"mmm rr")) -> STY 17 | E3: =UPPER(TEXT(DATE(RO_rok_pocz,RO_nr_miesiąca+1,1),"mmm rr")) -> LUT 17 | F3: =UPPER(TEXT(DATE(RO_rok_pocz,RO_nr_miesiąca+2,1),"mmm rr")) -> MAR 17 | G3: =UPPER(TEXT(DATE(RO_rok_pocz,RO_nr_miesiąca+3,1),"mmm rr")) -> KWI 17 | H3: =UPPER(TEXT(DATE(RO_rok_pocz,RO_nr_miesiąca+4,1),"mmm rr")) -> MAJ 17 | I3: =UPPER(TEXT(DATE(RO_rok_pocz,RO_nr_miesiąca+5,1),"mmm rr")) -> CZE 17 | J3: =UPPER(TEXT(DATE(RO_rok_pocz,RO_nr_miesiąca+6,1),"mmm rr")) -> LIP 17 | K3: =UPPER(TEXT(DATE(RO_rok_pocz,RO_nr_miesiąca+7,1),"mmm rr")) -> SIE 17 | L3: =UPPER(TEXT(DATE(RO_rok_pocz,RO_nr_miesiąca+8,1),"mmm rr")) -> WRZ 17 | M3: =UPPER(TEXT(DATE(RO_rok_pocz,RO_nr_miesiąca+9,1),"mmm rr")) -> PAŹ 17 | N3: =UPPER(TEXT(DATE(RO_rok_pocz,RO_nr_miesiąca+10,1),"mmm rr")) -> LIS 17 | O3: =UPPER(TEXT(DATE(RO_rok_pocz,RO_nr_miesiąca+11,1),"mmm rr")) -> GRU 17 | P3: ROCZNIE | Q3: % IND | R3: =LEFT(D3,3)&" %" -> STY % | S3: =LEFT(E3,3)&" %" -> LUT % | T3: MAR % | U3: KWI % | V3: MAJ % | W3: CZE % | X3: LIP % | Y3: SIE % | Z3: WRZ % | AA3: PAŹ % | AB3: LIS % | AC3: GRU % | AD3: ROK %
B4: PRZYCHÓD (SPRZEDAŻ) | C4: TREND | D4: Sty | E4: Lut | F4: Mar | G4: Kwi | H4: Maj | I4: Cze | J4: Lip | K4: Sie | L4: Wrz | M4: Paź | N4: Lis | O4: Gru | P4: Rocznie | Q4: % indeksu | R4: Sty % | S4: Lut % | T4: Mar % | U4: Kwi % | V4: Maj % | W4: Cze % | X4: Lip % | Y4: Sie % | Z4: Wrz % | AA4: Paź % | AB4: Lis % | AC4: Gru % | AD4: Rok %
B5: Przychód 1 | D5: 186 zł | E5: 108 zł | F5: 92 zł | G5: 122 zł | H5: 190 zł | I5: 71 zł | J5: 21 zł | K5: 37 zł | L5: 24 zł | M5: 178 zł | N5: 92 zł | O5: 97 zł | P5: =SUM(Przychód[[#This Row],[Sty]:[Gru]]) -> 1,218 zł | Q5: 12% | R5: =IFERROR(Przychód[[#This Row],[Sty]]/Przychód[[#Totals],[Sty]],"-") -> 30% | S5: =IFERROR(Przychód[[#This Row],[Lut]]/Przychód[[#Totals],[Lut]],"-") -> 15% | T5: =IFERROR(Przychód[[#This Row],[Mar]]/Przychód[[#Totals],[Mar]],"-") -> 11% | U5: =IFERROR(Przychód[[#This Row],[Kwi]]/Przychód[[#Totals],[Kwi]],"-") -> 20% | V5: =IFERROR(Przychód[[#This Row],[Maj]]/Przychód[[#Totals],[Maj]],"-") -> 23% | W5: =IFERROR(Przychód[[#This Row],[Cze]]/Przychód[[#Totals],[Cze]],"-") -> 12% | X5: =IFERROR(Przychód[[#This Row],[Lip]]/Przychód[[#Totals],[Lip]],"-") -> 4% | Y5: =IFERROR(Przychód[[#This Row],[Sie]]/Przychód[[#Totals],[Sie]],"-") -> 5% | Z5: =IFERROR(Przychód[[#This Row],[Wrz]]/Przychód[[#Totals],[Wrz]],"-") -> 3% | AA5: =IFERROR(Przychód[[#This Row],[Paź]]/Przychód[[#Totals],[Paź]],"-") -> 26% | AB5: =IFERROR(Przychód[[#This Row],[Lis]]/Przychód[[#Totals],[Lis]],"-") -> 12% | AC5: =IFERROR(Przychód[[#This Row],[Gru]]/Przychód[[#Totals],[Gru]],"-") -> 9% | AD5: =IFERROR(Przychód[[#This Row],[Rocznie]]/Przychód[[#Totals],[Rocznie]],"-") -> 14%
B6: Przychód 2 | D6: 15 zł | E6: 16 zł | F6: 198 zł | G6: 44 zł | H6: 25 zł | I6: 68 zł | J6: 43 zł | K6: 119 zł | L6: 37 zł | M6: 118 zł | N6: 29 zł | O6: 171 zł | P6: =SUM(Przychód[[#This Row],[Sty]:[Gru]]) -> 883 zł | Q6: 18% | R6: =IFERROR(Przychód[[#This Row],[Sty]]/Przychód[[#Totals],[Sty]],"-") -> 2% | S6: =IFERROR(Przychód[[#This Row],[Lut]]/Przychód[[#Totals],[Lut]],"-") -> 2% | T6: =IFERROR(Przychód[[#This Row],[Mar]]/Przychód[[#Totals],[Mar]],"-") -> 24% | U6: =IFERROR(Przychód[[#This Row],[Kwi]]/Przychód[[#Totals],[Kwi]],"-") -> 7% | V6: =IFERROR(Przychód[[#This Row],[Maj]]/Przychód[[#Totals],[Maj]],"-") -> 3% | W6: =IFERROR(Przychód[[#This Row],[Cze]]/Przychód[[#Totals],[Cze]],"-") -> 12% | X6: =IFERROR(Przychód[[#This Row],[Lip]]/Przychód[[#Totals],[Lip]],"-") -> 7% | Y6: =IFERROR(Przychód[[#This Row],[Sie]]/Przychód[[#Totals],[Sie]],"-") -> 18% | Z6: =IFERROR(Przychód[[#This Row],[Wrz]]/Przychód[[#Totals],[Wrz]],"-") -> 5% | AA6: =IFERROR(Przychód[[#This Row],[Paź]]/Przychód[[#Totals],[Paź]],"-") -> 17% | AB6: =IFERROR(Przychód[[#This Row],[Lis]]/Przychód[[#Totals],[Lis]],"-") -> 4% | AC6: =IFERROR(Przychód[[#This Row],[Gru]]/Przychód[[#Totals],[Gru]],"-") -> 16% | AD6: =IFERROR(Przychód[[#This Row],[Rocznie]]/Przychód[[#Totals],[Rocznie]],"-") -> 10%
B7: Przychód 3 | D7: 166 zł | E7: 185 zł | F7: 89 zł | G7: 170 zł | H7: 131 zł | I7: 70 zł | J7: 50 zł | K7: 149 zł | L7: 179 zł | M7: 104 zł | N7: 119 zł | O7: 187 zł | P7: =SUM(Przychód[[#This Row],[Sty]:[Gru]]) -> 1,599 zł | Q7: 19% | R7: =IFERROR(Przychód[[#This Row],[Sty]]/Przychód[[#Totals],[Sty]],"-") -> 27% | S7: =IFERROR(Przychód[[#This Row],[Lut]]/Przychód[[#Totals],[Lut]],"-") -> 25% | T7: =IFERROR(Przychód[[#This Row],[Mar]]/Przychód[[#Totals],[Mar]],"-") -> 11% | U7: =IFERROR(Przychód[[#This Row],[Kwi]]/Przychód[[#Totals],[Kwi]],"-") -> 28% | V7: =IFERROR(Przychód[[#This Row],[Maj]]/Przychód[[#Totals],[Maj]],"-") -> 16% | W7: =IFERROR(Przychód[[#This Row],[Cze]]/Przychód[[#Totals],[Cze]],"-") -> 12% | X7: =IFERROR(Przychód[[#This Row],[Lip]]/Przychód[[#Totals],[Lip]],"-") -> 8% | Y7: =IFERROR(Przychód[[#This Row],[Sie]]/Przychód[[#Totals],[Sie]],"-") -> 22% | Z7: =IFERROR(Przychód[[#This Row],[Wrz]]/Przychód[[#Totals],[Wrz]],"-") -> 24% | AA7: =IFERROR(Przychód[[#This Row],[Paź]]/Przychód[[#Totals],[Paź]],"-") -> 15% | AB7: =IFERROR(Przychód[[#This Row],[Lis]]/Przychód[[#Totals],[Lis]],"-") -> 16% | AC7: =IFERROR(Przychód[[#This Row],[Gru]]/Przychód[[#Totals],[Gru]],"-") -> 18% | AD7: =IFERROR(Przychód[[#This Row],[Rocznie]]/Przychód[[#Totals],[Rocznie]],"-") -> 18%
B8: Przychód 4 | D8: 21 zł | E8: 113 zł | F8: 83 zł | G8: 17 zł | H8: 130 zł | I8: 26 zł | J8: 167 zł | K8: 102 zł | L8: 82 zł | M8: 33 zł | N8: 88 zł | O8: 193 zł | P8: =SUM(Przychód[[#This Row],[Sty]:[Gru]]) -> 1,055 zł | Q8: 11% | R8: =IFERROR(Przychód[[#This Row],[Sty]]/Przychód[[#Totals],[Sty]],"-") -> 3% | S8: =IFERROR(Przychód[[#This Row],[Lut]]/Przychód[[#Totals],[Lut]],"-") -> 15% | T8: =IFERROR(Przychód[[#This Row],[Mar]]/Przychód[[#Totals],[Mar]],"-") -> 10% | U8: =IFERROR(Przychód[[#This Row],[Kwi]]/Przychód[[#Totals],[Kwi]],"-") -> 3% | V8: =IFERROR(Przychód[[#This Row],[Maj]]/Przychód[[#Totals],[Maj]],"-") -> 16% | W8: =IFERROR(Przychód[[#This Row],[Cze]]/Przychód[[#Totals],[Cze]],"-") -> 4% | X8: =IFERROR(Przychód[[#This Row],[Lip]]/Przychód[[#Totals],[Lip]],"-") -> 28% | Y8: =IFERROR(Przychód[[#This Row],[Sie]]/Przychód[[#Totals],[Sie]],"-") -> 15% | Z8: =IFERROR(Przychód[[#This Row],[Wrz]]/Przychód[[#Totals],[Wrz]],"-") -> 11% | AA8: =IFERROR(Przychód[[#This Row],[Paź]]/Przychód[[#Totals],[Paź]],"-") -> 5% | AB8: =IFERROR(Przychód[[#This Row],[Lis]]/Przychód[[#Totals],[Lis]],"-") -> 12% | AC8: =IFERROR(Przychód[[#This Row],[Gru]]/Przychód[[#Totals],[Gru]],"-") -> 19% | AD8: =IFERROR(Przychód[[#This Row],[Rocznie]]/Przychód[[#Totals],[Rocznie]],"-") -> 12%
B9: Przychód 5 | D9: 70 zł | E9: 160 zł | F9: 125 zł | G9: 84 zł | H9: 191 zł | I9: 97 zł | J9: 52 zł | K9: 45 zł | L9: 173 zł | M9: 136 zł | N9: 144 zł | O9: 167 zł | P9: =SUM(Przychód[[#This Row],[Sty]:[Gru]]) -> 1,444 zł | Q9: 20% | R9: =IFERROR(Przychód[[#This Row],[Sty]]/Przychód[[#Totals],[Sty]],"-") -> 11% | S9: =IFERROR(Przychód[[#This Row],[Lut]]/Przychód[[#Totals],[Lut]],"-") -> 22% | T9: =IFERROR(Przychód[[#This Row],[Mar]]/Przychód[[#Totals],[Mar]],"-") -> 15% | U9: =IFERROR(Przychód[[#This Row],[Kwi]]/Przychód[[#Totals],[Kwi]],"-") -> 14% | V9: =IFERROR(Przychód[[#This Row],[Maj]]/Przychód[[#Totals],[Maj]],"-") -> 24% | W9: =IFERROR(Przychód[[#This Row],[Cze]]/Przychód[[#Totals],[Cze]],"-") -> 17% | X9: =IFERROR(Przychód[[#This Row],[Lip]]/Przychód[[#Totals],[Lip]],"-") -> 9% | Y9: =IFERROR(Przychód[[#This Row],[Sie]]/Przychód[[#Totals],[Sie]],"-") -> 7% | Z9: =IFERROR(Przychód[[#This Row],[Wrz]]/Przychód[[#Totals],[Wrz]],"-") -> 23% | AA9: =IFERROR(Przychód[[#This Row],[Paź]]/Przychód[[#Totals],[Paź]],"-") -> 20% | AB9: =IFERROR(Przychód[[#This Row],[Lis]]/Przychód[[#Totals],[Lis]],"-") -> 19% | AC9: =IFERROR(Przychód[[#This Row],[Gru]]/Przychód[[#Totals],[Gru]],"-") -> 16% | AD9: =IFERROR(Przychód[[#This Row],[Rocznie]]/Przychód[[#Totals],[Rocznie]],"-") -> 17%
B10: Przychód 6 | D10: 61 zł | E10: 99 zł | F10: 70 zł | G10: 162 zł | H10: 28 zł | I10: 163 zł | J10: 101 zł | K10: 103 zł | L10: 78 zł | M10: 33 zł | N10: 162 zł | O10: 159 zł | P10: =SUM(Przychód[[#This Row],[Sty]:[Gru]]) -> 1,219 zł | Q10: 10% | R10: =IFERROR(Przychód[[#This Row],[Sty]]/Przychód[[#Totals],[Sty]],"-") -> 10% | S10: =IFERROR(Przychód[[#This Row],[Lut]]/Przychód[[#Totals],[Lut]],"-") -> 13% | T10: =IFERROR(Przychód[[#This Row],[Mar]]/Przychód[[#Totals],[Mar]],"-") -> 9% | U10: =IFERROR(Przychód[[#This Row],[Kwi]]/Przychód[[#Totals],[Kwi]],"-") -> 27% | V10: =IFERROR(Przychód[[#This Row],[Maj]]/Przychód[[#Totals],[Maj]],"-") -> 3% | W10: =IFERROR(Przychód[[#This Row],[Cze]]/Przychód[[#Totals],[Cze]],"-") -> 28% | X10: =IFERROR(Przychód[[#This Row],[Lip]]/Przychód[[#Totals],[Lip]],"-") -> 17% | Y10: =IFERROR(Przychód[[#This Row],[Sie]]/Przychód[[#Totals],[Sie]],"-") -> 15% | Z10: =IFERROR(Przychód[[#This Row],[Wrz]]/Przychód[[#Totals],[Wrz]],"-") -> 10% | AA10: =IFERROR(Przychód[[#This Row],[Paź]]/Przychód[[#Totals],[Paź]],"-") -> 5% | AB10: =IFERROR(Przychód[[#This Row],[Lis]]/Przychód[[#Totals],[Lis]],"-") -> 22% | AC10: =IFERROR(Przychód[[#This Row],[Gru]]/Przychód[[#Totals],[Gru]],"-") -> 15% | AD10: =IFERROR(Przychód[[#This Row],[Rocznie]]/Przychód[[#Totals],[Rocznie]],"-") -> 14%
B11: Przychód 7 | D11: 105 zł | E11: 55 zł | F11: 163 zł | G11: 12 zł | H11: 117 zł | I11: 83 zł | J11: 163 zł | K11: 120 zł | L11: 171 zł | M11: 79 zł | N11: 105 zł | O11: 69 zł | P11: =SUM(Przychód[[#This Row],[Sty]:[Gru]]) -> 1,242 zł | Q11: 10% | R11: =IFERROR(Przychód[[#This Row],[Sty]]/Przychód[[#Totals],[Sty]],"-") -> 17% | S11: =IFERROR(Przychód[[#This Row],[Lut]]/Przychód[[#Totals],[Lut]],"-") -> 7% | T11: =IFERROR(Przychód[[#This Row],[Mar]]/Przychód[[#Totals],[Mar]],"-") -> 20% | U11: =IFERROR(Przychód[[#This Row],[Kwi]]/Przychód[[#Totals],[Kwi]],"-") -> 2% | V11: =IFERROR(Przychód[[#This Row],[Maj]]/Przychód[[#Totals],[Maj]],"-") -> 14% | W11: =IFERROR(Przychód[[#This Row],[Cze]]/Przychód[[#Totals],[Cze]],"-") -> 14% | X11: =IFERROR(Przychód[[#This Row],[Lip]]/Przychód[[#Totals],[Lip]],"-") -> 27% | Y11: =IFERROR(Przychód[[#This Row],[Sie]]/Przychód[[#Totals],[Sie]],"-") -> 18% | Z11: =IFERROR(Przychód[[#This Row],[Wrz]]/Przychód[[#Totals],[Wrz]],"-") -> 23% | AA11: =IFERROR(Przychód[[#This Row],[Paź]]/Przychód[[#Totals],[Paź]],"-") -> 12% | AB11: =IFERROR(Przychód[[#This Row],[Lis]]/Przychód[[#Totals],[Lis]],"-") -> 14% | AC11: =IFERROR(Przychód[[#This Row],[Gru]]/Przychód[[#Totals],[Gru]],"-") -> 7% | AD11: =IFERROR(Przychód[[#This Row],[Rocznie]]/Przychód[[#Totals],[Rocznie]],"-") -> 14%
B12: SPRZEDAŻ CAŁKOWITA | D12: =SUBTOTAL(109,Przychód[Sty]) -> 624 zł | E12: =SUBTOTAL(109,Przychód[Lut]) -> 736 zł | F12: =SUBTOTAL(109,Przychód[Mar]) -> 820 zł | G12: =SUBTOTAL(109,Przychód[Kwi]) -> 611 zł | H12: =SUBTOTAL(109,Przychód[Maj]) -> 812 zł | I12: =SUBTOTAL(109,Przychód[Cze]) -> 578 zł | J12: =SUBTOTAL(109,Przychód[Lip]) -> 597 zł | K12: =SUBTOTAL(109,Przychód[Sie]) -> 675 zł | L12: =SUBTOTAL(109,Przychód[Wrz]) -> 744 zł | M12: =SUBTOTAL(109,Przychód[Paź]) -> 681 zł | N12: =SUBTOTAL(109,Przychód[Lis]) -> 739 zł | O12: =SUBTOTAL(109,Przychód[Gru]) -> 1,043 zł | P12: =SUBTOTAL(109,Przychód[Rocznie]) -> 8,660 zł | Q12: =SUBTOTAL(109,Przychód[% indeksu]) -> 100% | R12: =SUBTOTAL(109,Przychód[Sty %]) -> 100% | S12: =SUBTOTAL(109,Przychód[Lut %]) -> 100% | T12: =SUBTOTAL(109,Przychód[Mar %]) -> 100% | U12: =SUBTOTAL(109,Przychód[Kwi %]) -> 100% | V12: =SUBTOTAL(109,Przychód[Maj %]) -> 100% | W12: =SUBTOTAL(109,Przychód[Cze %]) -> 100% | X12: =SUBTOTAL(109,Przychód[Lip %]) -> 100% | Y12: =SUBTOTAL(109,Przychód[Sie %]) -> 100% | Z12: =SUBTOTAL(109,Przychód[Wrz %]) -> 100% | AA12: =SUBTOTAL(109,Przychód[Paź %]) -> 100% | AB12: =SUBTOTAL(109,Przychód[Lis %]) -> 100% | AC12: =SUBTOTAL(109,Przychód[Gru %]) -> 100% | AD12: =SUBTOTAL(109,Przychód[Rok %]) -> 100%

Sheet Koszt sprzedaży
B1: =Okres_prognozy_tytuł -> Dwanaście miesięcy | AD1: =Nazwa_firmy -> Nazwa firmy
B2: =_xlnm.Sheet_Title -> PROGNOZA ZYSKÓW I STRAT | AB2: ROK OBRACHUNKOWY: | AC2: =RO_mies_pocz -> STY | AD2: =RO_rok_pocz -> 2017
D3: =UPPER(TEXT(DATE(RO_rok_pocz,RO_nr_miesiąca,1),"mmm rr")) -> STY 17 | E3: =UPPER(TEXT(DATE(RO_rok_pocz,RO_nr_miesiąca+1,1),"mmm rr")) -> LUT 17 | F3: =UPPER(TEXT(DATE(RO_rok_pocz,RO_nr_miesiąca+2,1),"mmm rr")) -> MAR 17 | G3: =UPPER(TEXT(DATE(RO_rok_pocz,RO_nr_miesiąca+3,1),"mmm rr")) -> KWI 17 | H3: =UPPER(TEXT(DATE(RO_rok_pocz,RO_nr_miesiąca+4,1),"mmm rr")) -> MAJ 17 | I3: =UPPER(TEXT(DATE(RO_rok_pocz,RO_nr_miesiąca+5,1),"mmm rr")) -> CZE 17 | J3: =UPPER(TEXT(DATE(RO_rok_pocz,RO_nr_miesiąca+6,1),"mmm rr")) -> LIP 17 | K3: =UPPER(TEXT(DATE(RO_rok_pocz,RO_nr_miesiąca+7,1),"mmm rr")) -> SIE 17 | L3: =UPPER(TEXT(DATE(RO_rok_pocz,RO_nr_miesiąca+8,1),"mmm rr")) -> WRZ 17 | M3: =UPPER(TEXT(DATE(RO_rok_pocz,RO_nr_miesiąca+9,1),"mmm rr")) -> PAŹ 17 | N3: =UPPER(TEXT(DATE(RO_rok_pocz,RO_nr_miesiąca+10,1),"mmm rr")) -> LIS 17 | O3: =UPPER(TEXT(DATE(RO_rok_pocz,RO_nr_miesiąca+11,1),"mmm rr")) -> GRU 17 | P3: ROCZNIE | Q3: % IND | R3: =LEFT(D3,3)&" %" -> STY % | S3: =LEFT(E3,3)&" %" -> LUT % | T3: MAR % | U3: KWI % | V3: MAJ % | W3: CZE % | X3: LIP % | Y3: SIE % | Z3: WRZ % | AA3: PAŹ % | AB3: LIS % | AC3: GRU % | AD3: ROK %
B4: KOSZT SPRZEDAŻY | C4: TREND | D4: Sty | E4: Lut | F4: Mar | G4: Kwi | H4: Maj | I4: Cze | J4: Lip | K4: Sie | L4: Wrz | M4: Paź | N4: Lis | O4: Gru | P4: Rocznie | Q4: % indeksu | R4: Sty % | S4: Lut % | T4: Mar % | U4: Kwi % | V4: Maj % | W4: Cze % | X4: Lip % | Y4: Sie % | Z4: Wrz % | AA4: Paź % | AB4: Lis % | AC4: Gru % | AD4: Rok %
B5: Koszt 1 | D5: 61 zł | E5: 78 zł | F5: 65 zł | G5: 29 zł | H5: 125 zł | I5: 49 zł | J5: 14 zł | K5: 26 zł | L5: 14 zł | M5: 129 zł | N5: 60 zł | O5: 65 zł | P5: =SUM(Koszt_sprzedaży[[#This Row],[Sty]:[Gru]]) -> 715 zł | Q5: 12% | R5: =IFERROR(Koszt_sprzedaży[[#This Row],[Sty]]/Koszt_sprzedaży[[#Totals],[Sty]],"-") -> 23% | S5: =IFERROR(Koszt_sprzedaży[[#This Row],[Lut]]/Koszt_sprzedaży[[#Totals],[Lut]],"-") -> 22% | T5: =IFERROR(Koszt_sprzedaży[[#This Row],[Mar]]/Koszt_sprzedaży[[#Totals],[Mar]],"-") -> 21% | U5: =IFERROR(Koszt_sprzedaży[[#This Row],[Kwi]]/Koszt_sprzedaży[[#Totals],[Kwi]],"-") -> 12% | V5: =IFERROR(Koszt_sprzedaży[[#This Row],[Maj]]/Koszt_sprzedaży[[#Totals],[Maj]],"-") -> 31% | W5: =IFERROR(Koszt_sprzedaży[[#This Row],[Cze]]/Koszt_sprzedaży[[#Totals],[Cze]],"-") -> 16% | X5: =IFERROR(Koszt_sprzedaży[[#This Row],[Lip]]/Koszt_sprzedaży[[#Totals],[Lip]],"-") -> 5% | Y5: =IFERROR(Koszt_sprzedaży[[#This Row],[Sie]]/Koszt_sprzedaży[[#Totals],[Sie]],"-") -> 12% | Z5: =IFERROR(Koszt_sprzedaży[[#This Row],[Wrz]]/Koszt_sprzedaży[[#Totals],[Wrz]],"-") -> 3% | AA5: =IFERROR(Koszt_sprzedaży[[#This Row],[Paź]]/Koszt_sprzedaży[[#Totals],[Paź]],"-") -> 47% | AB5: =IFERROR(Koszt_sprzedaży[[#This Row],[Lis]]/Koszt_sprzedaży[[#Totals],[Lis]],"-") -> 23% | AC5: =IFERROR(Koszt_sprzedaży[[#This Row],[Gru]]/Koszt_sprzedaży[[#Totals],[Gru]],"-") -> 14% | AD5: =IFERROR(Koszt_sprzedaży[[#This Row],[Rocznie]]/Koszt_sprzedaży[[#Totals],[Rocznie]],"-") -> 19%
B6: Koszt 2 | D6: 7 zł | E6: 5 zł | F6: 69 zł | G6: 32 zł | H6: 11 zł | I6: 30 zł | J6: 27 zł | K6: 32 zł | L6: 10 zł | M6: 41 zł | N6: 13 zł | O6: 105 zł | P6: =SUM(Koszt_sprzedaży[[#This Row],[Sty]:[Gru]]) -> 382 zł | Q6: 18% | R6: =IFERROR(Koszt_sprzedaży[[#This Row],[Sty]]/Koszt_sprzedaży[[#Totals],[Sty]],"-") -> 3% | S6: =IFERROR(Koszt_sprzedaży[[#This Row],[Lut]]/Koszt_sprzedaży[[#Totals],[Lut]],"-") -> 1% | T6: =IFERROR(Koszt_sprzedaży[[#This Row],[Mar]]/Koszt_sprzedaży[[#Totals],[Mar]],"-") -> 22% | U6: =IFERROR(Koszt_sprzedaży[[#This Row],[Kwi]]/Koszt_sprzedaży[[#Totals],[Kwi]],"-") -> 13% | V6: =IFERROR(Koszt_sprzedaży[[#This Row],[Maj]]/Koszt_sprzedaży[[#Totals],[Maj]],"-") -> 3% | W6: =IFERROR(Koszt_sprzedaży[[#This Row],[Cze]]/Koszt_sprzedaży[[#Totals],[Cze]],"-") -> 10% | X6: =IFERROR(Koszt_sprzedaży[[#This Row],[Lip]]/Koszt_sprzedaży[[#Totals],[Lip]],"-") -> 9% | Y6: =IFERROR(Koszt_sprzedaży[[#This Row],[Sie]]/Koszt_sprzedaży[[#Totals],[Sie]],"-") -> 14% | Z6: =IFERROR(Koszt_sprzedaży[[#This Row],[Wrz]]/Koszt_sprzedaży[[#Totals],[Wrz]],"-") -> 2% | AA6: =IFERROR(Koszt_sprzedaży[[#This Row],[Paź]]/Koszt_sprzedaży[[#Totals],[Paź]],"-") -> 15% | AB6: =IFERROR(Koszt_sprzedaży[[#This Row],[Lis]]/Koszt_sprzedaży[[#Totals],[Lis]],"-") -> 5% | AC6: =IFERROR(Koszt_sprzedaży[[#This Row],[Gru]]/Koszt_sprzedaży[[#Totals],[Gru]],"-") -> 23% | AD6: =IFERROR(Koszt_sprzedaży[[#This Row],[Rocznie]]/Koszt_sprzedaży[[#Totals],[Rocznie]],"-") -> 10%
B7: Koszt 3 | D7: 99 zł | E7: 95 zł | F7: 51 zł | G7: 90 zł | H7: 21 zł | I7: 34 zł | J7: 30 zł | K7: 24 zł | L7: 109 zł | M7: 16 zł | N7: 21 zł | O7: 52 zł | P7: =SUM(Koszt_sprzedaży[[#This Row],[Sty]:[Gru]]) -> 642 zł | Q7: 19% | R7: =IFERROR(Koszt_sprzedaży[[#This Row],[Sty]]/Koszt_sprzedaży[[#Totals],[Sty]],"-") -> 37% | S7: =IFERROR(Koszt_sprzedaży[[#This Row],[Lut]]/Koszt_sprzedaży[[#Totals],[Lut]],"-") -> 27% | T7: =IFERROR(Koszt_sprzedaży[[#This Row],[Mar]]/Koszt_sprzedaży[[#Totals],[Mar]],"-") -> 16% | U7: =IFERROR(Koszt_sprzedaży[[#This Row],[Kwi]]/Koszt_sprzedaży[[#Totals],[Kwi]],"-") -> 37% | V7: =IFERROR(Koszt_sprzedaży[[#This Row],[Maj]]/Koszt_sprzedaży[[#Totals],[Maj]],"-") -> 5% | W7: =IFERROR(Koszt_sprzedaży[[#This Row],[Cze]]/Koszt_sprzedaży[[#Totals],[Cze]],"-") -> 11% | X7: =IFERROR(Koszt_sprzedaży[[#This Row],[Lip]]/Koszt_sprzedaży[[#Totals],[Lip]],"-") -> 10% | Y7: =IFERROR(Koszt_sprzedaży[[#This Row],[Sie]]/Koszt_sprzedaży[[#Totals],[Sie]],"-") -> 11% | Z7: =IFERROR(Koszt_sprzedaży[[#This Row],[Wrz]]/Koszt_sprzedaży[[#Totals],[Wrz]],"-") -> 26% | AA7: =IFERROR(Koszt_sprzedaży[[#This Row],[Paź]]/Koszt_sprzedaży[[#Totals],[Paź]],"-") -> 6% | AB7: =IFERROR(Koszt_sprzedaży[[#This Row],[Lis]]/Koszt_sprzedaży[[#Totals],[Lis]],"-") -> 8% | AC7: =IFERROR(Koszt_sprzedaży[[#This Row],[Gru]]/Koszt_sprzedaży[[#Totals],[Gru]],"-") -> 11% | AD7: =IFERROR(Koszt_sprzedaży[[#This Row],[Rocznie]]/Koszt_sprzedaży[[#Totals],[Rocznie]],"-") -> 17%
B8: Koszt 4 | D8: 13 zł | E8: 28 zł | F8: 15 zł | G8: 8 zł | H8: 84 zł | I8: 12 zł | J8: 54 zł | K8: 72 zł | L8: 49 zł | M8: 24 zł | N8: 60 zł | O8: 39 zł | P8: =SUM(Koszt_sprzedaży[[#This Row],[Sty]:[Gru]]) -> 458 zł | Q8: 11% | R8: =IFERROR(Koszt_sprzedaży[[#This Row],[Sty]]/Koszt_sprzedaży[[#Totals],[Sty]],"-") -> 5% | S8: =IFERROR(Koszt_sprzedaży[[#This Row],[Lut]]/Koszt_sprzedaży[[#Totals],[Lut]],"-") -> 8% | T8: =IFERROR(Koszt_sprzedaży[[#This Row],[Mar]]/Koszt_sprzedaży[[#Totals],[Mar]],"-") -> 5% | U8: =IFERROR(Koszt_sprzedaży[[#This Row],[Kwi]]/Koszt_sprzedaży[[#Totals],[Kwi]],"-") -> 3% | V8: =IFERROR(Koszt_sprzedaży[[#This Row],[Maj]]/Koszt_sprzedaży[[#Totals],[Maj]],"-") -> 21% | W8: =IFERROR(Koszt_sprzedaży[[#This Row],[Cze]]/Koszt_sprzedaży[[#Totals],[Cze]],"-") -> 4% | X8: =IFERROR(Koszt_sprzedaży[[#This Row],[Lip]]/Koszt_sprzedaży[[#Totals],[Lip]],"-") -> 18% | Y8: =IFERROR(Koszt_sprzedaży[[#This Row],[Sie]]/Koszt_sprzedaży[[#Totals],[Sie]],"-") -> 32% | Z8: =IFERROR(Koszt_sprzedaży[[#This Row],[Wrz]]/Koszt_sprzedaży[[#Totals],[Wrz]],"-") -> 12% | AA8: =IFERROR(Koszt_sprzedaży[[#This Row],[Paź]]/Koszt_sprzedaży[[#Totals],[Paź]],"-") -> 9% | AB8: =IFERROR(Koszt_sprzedaży[[#This Row],[Lis]]/Koszt_sprzedaży[[#Totals],[Lis]],"-") -> 23% | AC8: =IFERROR(Koszt_sprzedaży[[#This Row],[Gru]]/Koszt_sprzedaży[[#Totals],[Gru]],"-") -> 9% | AD8: =IFERROR(Koszt_sprzedaży[[#This Row],[Rocznie]]/Koszt_sprzedaży[[#Totals],[Rocznie]],"-") -> 12%
B9: Koszt 5 | D9: 34 zł | E9: 78 zł | F9: 43 zł | G9: 30 zł | H9: 77 zł | I9: 54 zł | J9: 26 zł | K9: 13 zł | L9: 56 zł | M9: 30 zł | N9: 40 zł | O9: 63 zł | P9: =SUM(Koszt_sprzedaży[[#This Row],[Sty]:[Gru]]) -> 544 zł | Q9: 20% | R9: =IFERROR(Koszt_sprzedaży[[#This Row],[Sty]]/Koszt_sprzedaży[[#Totals],[Sty]],"-") -> 13% | S9: =IFERROR(Koszt_sprzedaży[[#This Row],[Lut]]/Koszt_sprzedaży[[#Totals],[Lut]],"-") -> 22% | T9: =IFERROR(Koszt_sprzedaży[[#This Row],[Mar]]/Koszt_sprzedaży[[#Totals],[Mar]],"-") -> 14% | U9: =IFERROR(Koszt_sprzedaży[[#This Row],[Kwi]]/Koszt_sprzedaży[[#Totals],[Kwi]],"-") -> 12% | V9: =IFERROR(Koszt_sprzedaży[[#This Row],[Maj]]/Koszt_sprzedaży[[#Totals],[Maj]],"-") -> 19% | W9: =IFERROR(Koszt_sprzedaży[[#This Row],[Cze]]/Koszt_sprzedaży[[#Totals],[Cze]],"-") -> 17% | X9: =IFERROR(Koszt_sprzedaży[[#This Row],[Lip]]/Koszt_sprzedaży[[#Totals],[Lip]],"-") -> 9% | Y9: =IFERROR(Koszt_sprzedaży[[#This Row],[Sie]]/Koszt_sprzedaży[[#Totals],[Sie]],"-") -> 6% | Z9: =IFERROR(Koszt_sprzedaży[[#This Row],[Wrz]]/Koszt_sprzedaży[[#Totals],[Wrz]],"-") -> 14% | AA9: =IFERROR(Koszt_sprzedaży[[#This Row],[Paź]]/Koszt_sprzedaży[[#Totals],[Paź]],"-") -> 11% | AB9: =IFERROR(Koszt_sprzedaży[[#This Row],[Lis]]/Koszt_sprzedaży[[#Totals],[Lis]],"-") -> 15% | AC9: =IFERROR(Koszt_sprzedaży[[#This Row],[Gru]]/Koszt_sprzedaży[[#Totals],[Gru]],"-") -> 14% | AD9: =IFERROR(Koszt_sprzedaży[[#This Row],[Rocznie]]/Koszt_sprzedaży[[#Totals],[Rocznie]],"-") -> 14%
B10: Koszt 6 | D10: 33 zł | E10: 61 zł | F10: 42 zł | G10: 43 zł | H10: 19 zł | I10: 94 zł | J10: 46 zł | K10: 15 zł | L10: 55 zł | M10: 15 zł | N10: 37 zł | O10: 89 zł | P10: =SUM(Koszt_sprzedaży[[#This Row],[Sty]:[Gru]]) -> 549 zł | Q10: 10% | R10: =IFERROR(Koszt_sprzedaży[[#This Row],[Sty]]/Koszt_sprzedaży[[#Totals],[Sty]],"-") -> 12% | S10: =IFERROR(Koszt_sprzedaży[[#This Row],[Lut]]/Koszt_sprzedaży[[#Totals],[Lut]],"-") -> 17% | T10: =IFERROR(Koszt_sprzedaży[[#This Row],[Mar]]/Koszt_sprzedaży[[#Totals],[Mar]],"-") -> 13% | U10: =IFERROR(Koszt_sprzedaży[[#This Row],[Kwi]]/Koszt_sprzedaży[[#Totals],[Kwi]],"-") -> 18% | V10: =IFERROR(Koszt_sprzedaży[[#This Row],[Maj]]/Koszt_sprzedaży[[#Totals],[Maj]],"-") -> 5% | W10: =IFERROR(Koszt_sprzedaży[[#This Row],[Cze]]/Koszt_sprzedaży[[#Totals],[Cze]],"-") -> 30% | X10: =IFERROR(Koszt_sprzedaży[[#This Row],[Lip]]/Koszt_sprzedaży[[#Totals],[Lip]],"-") -> 15% | Y10: =IFERROR(Koszt_sprzedaży[[#This Row],[Sie]]/Koszt_sprzedaży[[#Totals],[Sie]],"-") -> 7% | Z10: =IFERROR(Koszt_sprzedaży[[#This Row],[Wrz]]/Koszt_sprzedaży[[#Totals],[Wrz]],"-") -> 13% | AA10: =IFERROR(Koszt_sprzedaży[[#This Row],[Paź]]/Koszt_sprzedaży[[#Totals],[Paź]],"-") -> 5% | AB10: =IFERROR(Koszt_sprzedaży[[#This Row],[Lis]]/Koszt_sprzedaży[[#Totals],[Lis]],"-") -> 14% | AC10: =IFERROR(Koszt_sprzedaży[[#This Row],[Gru]]/Koszt_sprzedaży[[#Totals],[Gru]],"-") -> 20% | AD10: =IFERROR(Koszt_sprzedaży[[#This Row],[Rocznie]]/Koszt_sprzedaży[[#Totals],[Rocznie]],"-") -> 14%
B11: Koszt 7 | D11: 18 zł | E11: 11 zł | F11: 30 zł | G11: 9 zł | H11: 62 zł | I11: 39 zł | J11: 102 zł | K11: 44 zł | L11: 121 zł | M11: 19 zł | N11: 33 zł | O11: 40 zł | P11: =SUM(Koszt_sprzedaży[[#This Row],[Sty]:[Gru]]) -> 528 zł | Q11: 10% | R11: =IFERROR(Koszt_sprzedaży[[#This Row],[Sty]]/Koszt_sprzedaży[[#Totals],[Sty]],"-") -> 7% | S11: =IFERROR(Koszt_sprzedaży[[#This Row],[Lut]]/Koszt_sprzedaży[[#Totals],[Lut]],"-") -> 3% | T11: =IFERROR(Koszt_sprzedaży[[#This Row],[Mar]]/Koszt_sprzedaży[[#Totals],[Mar]],"-") -> 10% | U11: =IFERROR(Koszt_sprzedaży[[#This Row],[Kwi]]/Koszt_sprzedaży[[#Totals],[Kwi]],"-") -> 4% | V11: =IFERROR(Koszt_sprzedaży[[#This Row],[Maj]]/Koszt_sprzedaży[[#Totals],[Maj]],"-") -> 16% | W11: =IFERROR(Koszt_sprzedaży[[#This Row],[Cze]]/Koszt_sprzedaży[[#Totals],[Cze]],"-") -> 13% | X11: =IFERROR(Koszt_sprzedaży[[#This Row],[Lip]]/Koszt_sprzedaży[[#Totals],[Lip]],"-") -> 34% | Y11: =IFERROR(Koszt_sprzedaży[[#This Row],[Sie]]/Koszt_sprzedaży[[#Totals],[Sie]],"-") -> 19% | Z11: =IFERROR(Koszt_sprzedaży[[#This Row],[Wrz]]/Koszt_sprzedaży[[#Totals],[Wrz]],"-") -> 29% | AA11: =IFERROR(Koszt_sprzedaży[[#This Row],[Paź]]/Koszt_sprzedaży[[#Totals],[Paź]],"-") -> 7% | AB11: =IFERROR(Koszt_sprzedaży[[#This Row],[Lis]]/Koszt_sprzedaży[[#Totals],[Lis]],"-") -> 13% | AC11: =IFERROR(Koszt_sprzedaży[[#This Row],[Gru]]/Koszt_sprzedaży[[#Totals],[Gru]],"-") -> 9% | AD11: =IFERROR(Koszt_sprzedaży[[#This Row],[Rocznie]]/Koszt_sprzedaży[[#Totals],[Rocznie]],"-") -> 14%
B12: CAŁKOWITY KOSZT SPRZEDAŻY | D12: =SUBTOTAL(109,Koszt_sprzedaży[Sty]) -> 265 zł | E12: =SUBTOTAL(109,Koszt_sprzedaży[Lut]) -> 356 zł | F12: =SUBTOTAL(109,Koszt_sprzedaży[Mar]) -> 315 zł | G12: =SUBTOTAL(109,Koszt_sprzedaży[Kwi]) -> 241 zł | H12: =SUBTOTAL(109,Koszt_sprzedaży[Maj]) -> 399 zł | I12: =SUBTOTAL(109,Koszt_sprzedaży[Cze]) -> 312 zł | J12: =SUBTOTAL(109,Koszt_sprzedaży[Lip]) -> 299 zł | K12: =SUBTOTAL(109,Koszt_sprzedaży[Sie]) -> 226 zł | L12: =SUBTOTAL(109,Koszt_sprzedaży[Wrz]) -> 414 zł | M12: =SUBTOTAL(109,Koszt_sprzedaży[Paź]) -> 274 zł | N12: =SUBTOTAL(109,Koszt_sprzedaży[Lis]) -> 264 zł | O12: =SUBTOTAL(109,Koszt_sprzedaży[Gru]) -> 453 zł | P12: =SUBTOTAL(109,Koszt_sprzedaży[Rocznie]) -> 3,818 zł | Q12: =SUBTOTAL(109,Koszt_sprzedaży[% indeksu]) -> 100% | R12: =SUBTOTAL(109,Koszt_sprzedaży[Sty %]) -> 100% | S12: =SUBTOTAL(109,Koszt_sprzedaży[Lut %]) -> 100% | T12: =SUBTOTAL(109,Koszt_sprzedaży[Mar %]) -> 100% | U12: =SUBTOTAL(109,Koszt_sprzedaży[Kwi %]) -> 100% | V12: =SUBTOTAL(109,Koszt_sprzedaży[Maj %]) -> 100% | W12: =SUBTOTAL(109,Koszt_sprzedaży[Cze %]) -> 100% | X12: =SUBTOTAL(109,Koszt_sprzedaży[Lip %]) -> 100% | Y12: =SUBTOTAL(109,Koszt_sprzedaży[Sie %]) -> 100% | Z12: =SUBTOTAL(109,Koszt_sprzedaży[Wrz %]) -> 100% | AA12: =SUBTOTAL(109,Koszt_sprzedaży[Paź %]) -> 100% | AB12: =SUBTOTAL(109,Koszt_sprzedaży[Lis %]) -> 100% | AC12: =SUBTOTAL(109,Koszt_sprzedaży[Gru %]) -> 100% | AD12: =SUBTOTAL(109,Koszt_sprzedaży[Rok %]) -> 100%
B14: Zysk brutto | D14: =Przychód[[#Totals],[Sty]]-Koszt_sprzedaży[[#Totals],[Sty]] -> 359 zł | E14: =Przychód[[#Totals],[Lut]]-Koszt_sprzedaży[[#Totals],[Lut]] -> 380 zł | F14: =Przychód[[#Totals],[Mar]]-Koszt_sprzedaży[[#Totals],[Mar]] -> 505 zł | G14: =Przychód[[#Totals],[Kwi]]-Koszt_sprzedaży[[#Totals],[Kwi]] -> 370 zł | H14: =Przychód[[#Totals],[Maj]]-Koszt_sprzedaży[[#Totals],[Maj]] -> 413 zł | I14: =Przychód[[#Totals],[Cze]]-Koszt_sprzedaży[[#Totals],[Cze]] -> 266 zł | J14: =Przychód[[#Totals],[Lip]]-Koszt_sprzedaży[[#Totals],[Lip]] -> 298 zł | K14: =Przychód[[#Totals],[Sie]]-Koszt_sprzedaży[[#Totals],[Sie]] -> 449 zł | L14: =Przychód[[#Totals],[Wrz]]-Koszt_sprzedaży[[#Totals],[Wrz]] -> 330 zł | M14: =Przychód[[#Totals],[Paź]]-Koszt_sprzedaży[[#Totals],[Paź]] -> 407 zł | N14: =Przychód[[#Totals],[Lis]]-Koszt_sprzedaży[[#Totals],[Lis]] -> 475 zł | O14: =Przychód[[#Totals],[Gru]]-Koszt_sprzedaży[[#Totals],[Gru]] -> 590 zł | P14: =Przychód[[#Totals],[Rocznie]]-Koszt_sprzedaży[[#Totals],[Rocznie]] -> 4,842 zł | R14: =D14/$P$14 -> 7% | S14: 8% | T14: 10% | U14: 8% | V14: 9% | W14: 5% | X14: 6% | Y14: 9% | Z14: 7% | AA14: 8% | AB14: 10% | AC14: 12% | AD14: 100%

Sheet Wydatki
B1: =Okres_prognozy_tytuł -> Dwanaście miesięcy | AD1: =Nazwa_firmy -> Nazwa firmy
B2: ='Przychód (sprzedaż)'!$B$2 -> PROGNOZA ZYSKÓW I STRAT | AB2: ROK OBRACHUNKOWY: | AC2: =RO_mies_pocz -> STY | AD2: =RO_rok_pocz -> 2017
D3: =UPPER(TEXT(DATE(RO_rok_pocz,RO_nr_miesiąca,1),"mmm rr")) -> STY 17 | E3: =UPPER(TEXT(DATE(RO_rok_pocz,RO_nr_miesiąca+1,1),"mmm rr")) -> LUT 17 | F3: =UPPER(TEXT(DATE(RO_rok_pocz,RO_nr_miesiąca+2,1),"mmm rr")) -> MAR 17 | G3: =UPPER(TEXT(DATE(RO_rok_pocz,RO_nr_miesiąca+3,1),"mmm rr")) -> KWI 17 | H3: =UPPER(TEXT(DATE(RO_rok_pocz,RO_nr_miesiąca+4,1),"mmm rr")) -> MAJ 17 | I3: =UPPER(TEXT(DATE(RO_rok_pocz,RO_nr_miesiąca+5,1),"mmm rr")) -> CZE 17 | J3: =UPPER(TEXT(DATE(RO_rok_pocz,RO_nr_miesiąca+6,1),"mmm rr")) -> LIP 17 | K3: =UPPER(TEXT(DATE(RO_rok_pocz,RO_nr_miesiąca+7,1),"mmm rr")) -> SIE 17 | L3: =UPPER(TEXT(DATE(RO_rok_pocz,RO_nr_miesiąca+8,1),"mmm rr")) -> WRZ 17 | M3: =UPPER(TEXT(DATE(RO_rok_pocz,RO_nr_miesiąca+9,1),"mmm rr")) -> PAŹ 17 | N3: =UPPER(TEXT(DATE(RO_rok_pocz,RO_nr_miesiąca+10,1),"mmm rr")) -> LIS 17 | O3: =UPPER(TEXT(DATE(RO_rok_pocz,RO_nr_miesiąca+11,1),"mmm rr")) -> GRU 17 | P3: ROCZNIE | Q3: % IND | R3: =LEFT(D3,3)&" %" -> STY % | S3: =LEFT(E3,3)&" %" -> LUT % | T3: MAR % | U3: KWI % | V3: MAJ % | W3: CZE % | X3: LIP % | Y3: SIE % | Z3: WRZ % | AA3: PAŹ % | AB3: LIS % | AC3: GRU % | AD3: ROK %
B4: WYDATKI | C4: TREND | D4: Kolumna1 | E4: Lut | F4: Mar | G4: Kwi | H4: Maj | I4: Cze | J4: Lip | K4: Sie | L4: Wrz | M4: Paź | N4: Lis | O4: Gru | P4: Rocznie | Q4: % indeksu | R4: Sty % | S4: Lut % | T4: Mar % | U4: Kwi % | V4: Maj % | W4: Cze % | X4: Lip % | Y4: Sie % | Z4: Wrz % | AA4: Paź % | AB4: Lis % | AC4: Gru % | AD4: Rok %
B5: Wydatki z tytułu wynagrodzeń | D5: 10 zł | E5: 18 zł | F5: 13 zł | G5: 8 zł | H5: 22 zł | I5: 18 zł | J5: 8 zł | K5: 17 zł | L5: 20 zł | M5: 8 zł | N5: 4 zł | O5: 12 zł | P5: =SUM(tbl_Wydatki[[#This Row],[Kolumna1]:[Gru]]) -> 158 zł | Q5: 12% | R5: =tbl_Wydatki[[#This Row],[Kolumna1]]/tbl_Wydatki[[#Totals],[Kolumna1]] -> 4% | S5: =tbl_Wydatki[[#This Row],[Lut]]/tbl_Wydatki[[#Totals],[Lut]] -> 9% | T5: =tbl_Wydatki[[#This Row],[Mar]]/tbl_Wydatki[[#Totals],[Mar]] -> 5% | U5: =tbl_Wydatki[[#This Row],[Kwi]]/tbl_Wydatki[[#Totals],[Kwi]] -> 3% | V5: =tbl_Wydatki[[#This Row],[Maj]]/tbl_Wydatki[[#Totals],[Maj]] -> 9% | W5: =tbl_Wydatki[[#This Row],[Cze]]/tbl_Wydatki[[#Totals],[Cze]] -> 7% | X5: =tbl_Wydatki[[#This Row],[Lip]]/tbl_Wydatki[[#Totals],[Lip]] -> 3% | Y5: =tbl_Wydatki[[#This Row],[Sie]]/tbl_Wydatki[[#Totals],[Sie]] -> 7% | Z5: =tbl_Wydatki[[#This Row],[Wrz]]/tbl_Wydatki[[#Totals],[Wrz]] -> 9% | AA5: =tbl_Wydatki[[#This Row],[Paź]]/tbl_Wydatki[[#Totals],[Paź]] -> 3% | AB5: =tbl_Wydatki[[#This Row],[Lis]]/tbl_Wydatki[[#Totals],[Lis]] -> 1% | AC5: =tbl_Wydatki[[#This Row],[Gru]]/tbl_Wydatki[[#Totals],[Gru]] -> 5% | AD5: =tbl_Wydatki[[#This Row],[Rocznie]]/tbl_Wydatki[[#Totals],[Rocznie]] -> 5%
B6: Wydatki z tytułu płac | D6: 23 zł | E6: 11 zł | F6: 7 zł | G6: 14 zł | H6: 12 zł | I6: 19 zł | J6: 19 zł | K6: 4 zł | L6: 7 zł | M6: 13 zł | N6: 25 zł | O6: 5 zł | P6: =SUM(tbl_Wydatki[[#This Row],[Kolumna1]:[Gru]]) -> 159 zł | Q6: 9% | R6: =tbl_Wydatki[[#This Row],[Kolumna1]]/tbl_Wydatki[[#Totals],[Kolumna1]] -> 10% | S6: =tbl_Wydatki[[#This Row],[Lut]]/tbl_Wydatki[[#Totals],[Lut]] -> 5% | T6: =tbl_Wydatki[[#This Row],[Mar]]/tbl_Wydatki[[#Totals],[Mar]] -> 3% | U6: =tbl_Wydatki[[#This Row],[Kwi]]/tbl_Wydatki[[#Totals],[Kwi]] -> 5% | V6: =tbl_Wydatki[[#This Row],[Maj]]/tbl_Wydatki[[#Totals],[Maj]] -> 5% | W6: =tbl_Wydatki[[#This Row],[Cze]]/tbl_Wydatki[[#Totals],[Cze]] -> 7% | X6: =tbl_Wydatki[[#This Row],[Lip]]/tbl_Wydatki[[#Totals],[Lip]] -> 7% | Y6: =tbl_Wydatki[[#This Row],[Sie]]/tbl_Wydatki[[#Totals],[Sie]] -> 2% | Z6: =tbl_Wydatki[[#This Row],[Wrz]]/tbl_Wydatki[[#Totals],[Wrz]] -> 3% | AA6: =tbl_Wydatki[[#This Row],[Paź]]/tbl_Wydatki[[#Totals],[Paź]] -> 5% | AB6: =tbl_Wydatki[[#This Row],[Lis]]/tbl_Wydatki[[#Totals],[Lis]] -> 8% | AC6: =tbl_Wydatki[[#This Row],[Gru]]/tbl_Wydatki[[#Totals],[Gru]] -> 2% | AD6: =tbl_Wydatki[[#This Row],[Rocznie]]/tbl_Wydatki[[#Totals],[Rocznie]] -> 5%
B7: Usługi zewnętrzne | D7: 23 zł | E7: 20 zł | F7: 3 zł | G7: 16 zł | H7: 10 zł | I7: 5 zł | J7: 20 zł | K7: 7 zł | L7: 4 zł | M7: 22 zł | N7: 13 zł | O7: 14 zł | P7: =SUM(tbl_Wydatki[[#This Row],[Kolumna1]:[Gru]]) -> 157 zł | Q7: 2% | R7: =tbl_Wydatki[[#This Row],[Kolumna1]]/tbl_Wydatki[[#Totals],[Kolumna1]] -> 10% | S7: =tbl_Wydatki[[#This Row],[Lut]]/tbl_Wydatki[[#Totals],[Lut]] -> 10% | T7: =tbl_Wydatki[[#This Row],[Mar]]/tbl_Wydatki[[#Totals],[Mar]] -> 1% | U7: =tbl_Wydatki[[#This Row],[Kwi]]/tbl_Wydatki[[#Totals],[Kwi]] -> 6% | V7: =tbl_Wydatki[[#This Row],[Maj]]/tbl_Wydatki[[#Totals],[Maj]] -> 4% | W7: =tbl_Wydatki[[#This Row],[Cze]]/tbl_Wydatki[[#Totals],[Cze]] -> 2% | X7: =tbl_Wydatki[[#This Row],[Lip]]/tbl_Wydatki[[#Totals],[Lip]] -> 8% | Y7: =tbl_Wydatki[[#This Row],[Sie]]/tbl_Wydatki[[#Totals],[Sie]] -> 3% | Z7: =tbl_Wydatki[[#This Row],[Wrz]]/tbl_Wydatki[[#Totals],[Wrz]] -> 2% | AA7: =tbl_Wydatki[[#This Row],[Paź]]/tbl_Wydatki[[#Totals],[Paź]] -> 8% | AB7: =tbl_Wydatki[[#This Row],[Lis]]/tbl_Wydatki[[#Totals],[Lis]] -> 4% | AC7: =tbl_Wydatki[[#This Row],[Gru]]/tbl_Wydatki[[#Totals],[Gru]] -> 6% | AD7: =tbl_Wydatki[[#This Row],[Rocznie]]/tbl_Wydatki[[#Totals],[Rocznie]] -> 5%
B8: Materiały eksploatacyjne (biurowe i operacyjne) | D8: 19 zł | E8: 4 zł | F8: 7 zł | G8: 14 zł | H8: 22 zł | I8: 10 zł | J8: 22 zł | K8: 5 zł | L8: 4 zł | M8: 12 zł | N8: 18 zł | O8: 24 zł | P8: =SUM(tbl_Wydatki[[#This Row],[Kolumna1]:[Gru]]) -> 161 zł | Q8: 8% | R8: =tbl_Wydatki[[#This Row],[Kolumna1]]/tbl_Wydatki[[#Totals],[Kolumna1]] -> 8% | S8: =tbl_Wydatki[[#This Row],[Lut]]/tbl_Wydatki[[#Totals],[Lut]] -> 2% | T8: =tbl_Wydatki[[#This Row],[Mar]]/tbl_Wydatki[[#Totals],[Mar]] -> 3% | U8: =tbl_Wydatki[[#This Row],[Kwi]]/tbl_Wydatki[[#Totals],[Kwi]] -> 5% | V8: =tbl_Wydatki[[#This Row],[Maj]]/tbl_Wydatki[[#Totals],[Maj]] -> 9% | W8: =tbl_Wydatki[[#This Row],[Cze]]/tbl_Wydatki[[#Totals],[Cze]] -> 4% | X8: =tbl_Wydatki[[#This Row],[Lip]]/tbl_Wydatki[[#Totals],[Lip]] -> 8% | Y8: =tbl_Wydatki[[#This Row],[Sie]]/tbl_Wydatki[[#Totals],[Sie]] -> 2% | Z8: =tbl_Wydatki[[#This Row],[Wrz]]/tbl_Wydatki[[#Totals],[Wrz]] -> 2% | AA8: =tbl_Wydatki[[#This Row],[Paź]]/tbl_Wydatki[[#Totals],[Paź]] -> 5% | AB8: =tbl_Wydatki[[#This Row],[Lis]]/tbl_Wydatki[[#Totals],[Lis]] -> 6% | AC8: =tbl_Wydatki[[#This Row],[Gru]]/tbl_Wydatki[[#Totals],[Gru]] -> 10% | AD8: =tbl_Wydatki[[#This Row],[Rocznie]]/tbl_Wydatki[[#Totals],[Rocznie]] -> 5%
B9: Naprawa i konserwacja | D9: 11 zł | E9: 11 zł | F9: 17 zł | G9: 12 zł | H9: 2 zł | I9: 14 zł | J9: 12 zł | K9: 10 zł | L9: 18 zł | M9: 11 zł | N9: 23 zł | O9: 11 zł | P9: =SUM(tbl_Wydatki[[#This Row],[Kolumna1]:[Gru]]) -> 152 zł | Q9: 3% | R9: =tbl_Wydatki[[#This Row],[Kolumna1]]/tbl_Wydatki[[#Totals],[Kolumna1]] -> 5% | S9: =tbl_Wydatki[[#This Row],[Lut]]/tbl_Wydatki[[#Totals],[Lut]] -> 5% | T9: =tbl_Wydatki[[#This Row],[Mar]]/tbl_Wydatki[[#Totals],[Mar]] -> 7% | U9: =tbl_Wydatki[[#This Row],[Kwi]]/tbl_Wydatki[[#Totals],[Kwi]] -> 5% | V9: =tbl_Wydatki[[#This Row],[Maj]]/tbl_Wydatki[[#Totals],[Maj]] -> 1% | W9: =tbl_Wydatki[[#This Row],[Cze]]/tbl_Wydatki[[#Totals],[Cze]] -> 5% | X9: =tbl_Wydatki[[#This Row],[Lip]]/tbl_Wydatki[[#Totals],[Lip]] -> 5% | Y9: =tbl_Wydatki[[#This Row],[Sie]]/tbl_Wydatki[[#Totals],[Sie]] -> 4% | Z9: =tbl_Wydatki[[#This Row],[Wrz]]/tbl_Wydatki[[#Totals],[Wrz]] -> 8% | AA9: =tbl_Wydatki[[#This Row],[Paź]]/tbl_Wydatki[[#Totals],[Paź]] -> 4% | AB9: =tbl_Wydatki[[#This Row],[Lis]]/tbl_Wydatki[[#Totals],[Lis]] -> 8% | AC9: =tbl_Wydatki[[#This Row],[Gru]]/tbl_Wydatki[[#Totals],[Gru]] -> 5% | AD9: =tbl_Wydatki[[#This Row],[Rocznie]]/tbl_Wydatki[[#Totals],[Rocznie]] -> 5%
B10: Reklama | D10: 2 zł | E10: 16 zł | F10: 6 zł | G10: 13 zł | H10: 11 zł | I10: 22 zł | J10: 21 zł | K10: 3 zł | L10: 12 zł | M10: 7 zł | N10: 17 zł | O10: 20 zł | P10: =SUM(tbl_Wydatki[[#This Row],[Kolumna1]:[Gru]]) -> 150 zł | Q10: 15% | R10: =tbl_Wydatki[[#This Row],[Kolumna1]]/tbl_Wydatki[[#Totals],[Kolumna1]] -> 1% | S10: =tbl_Wydatki[[#This Row],[Lut]]/tbl_Wydatki[[#Totals],[Lut]] -> 8% | T10: =tbl_Wydatki[[#This Row],[Mar]]/tbl_Wydatki[[#Totals],[Mar]] -> 2% | U10: =tbl_Wydatki[[#This Row],[Kwi]]/tbl_Wydatki[[#Totals],[Kwi]] -> 5% | V10: =tbl_Wydatki[[#This Row],[Maj]]/tbl_Wydatki[[#Totals],[Maj]] -> 4% | W10: =tbl_Wydatki[[#This Row],[Cze]]/tbl_Wydatki[[#Totals],[Cze]] -> 8% | X10: =tbl_Wydatki[[#This Row],[Lip]]/tbl_Wydatki[[#Totals],[Lip]] -> 8% | Y10: =tbl_Wydatki[[#This Row],[Sie]]/tbl_Wydatki[[#Totals],[Sie]] -> 1% | Z10: =tbl_Wydatki[[#This Row],[Wrz]]/tbl_Wydatki[[#Totals],[Wrz]] -> 5% | AA10: =tbl_Wydatki[[#This Row],[Paź]]/tbl_Wydatki[[#Totals],[Paź]] -> 3% | AB10: =tbl_Wydatki[[#This Row],[Lis]]/tbl_Wydatki[[#Totals],[Lis]] -> 6% | AC10: =tbl_Wydatki[[#This Row],[Gru]]/tbl_Wydatki[[#Totals],[Gru]] -> 9% | AD10: =tbl_Wydatki[[#This Row],[Rocznie]]/tbl_Wydatki[[#Totals],[Rocznie]] -> 5%
B11: Samochody, dostawy i podróże | D11: 8 zł | E11: 17 zł | F11: 11 zł | G11: 11 zł | H11: 21 zł | I11: 9 zł | J11: 20 zł | K11: 3 zł | L11: 14 zł | M11: 22 zł | N11: 16 zł | O11: 12 zł | P11: =SUM(tbl_Wydatki[[#This Row],[Kolumna1]:[Gru]]) -> 164 zł | Q11: 12% | R11: =tbl_Wydatki[[#This Row],[Kolumna1]]/tbl_Wydatki[[#Totals],[Kolumna1]] -> 3% | S11: =tbl_Wydatki[[#This Row],[Lut]]/tbl_Wydatki[[#Totals],[Lut]] -> 8% | T11: =tbl_Wydatki[[#This Row],[Mar]]/tbl_Wydatki[[#Totals],[Mar]] -> 4% | U11: =tbl_Wydatki[[#This Row],[Kwi]]/tbl_Wydatki[[#Totals],[Kwi]] -> 4% | V11: =tbl_Wydatki[[#This Row],[Maj]]/tbl_Wydatki[[#Totals],[Maj]] -> 8% | W11: =tbl_Wydatki[[#This Row],[Cze]]/tbl_Wydatki[[#Totals],[Cze]] -> 3% | X11: =tbl_Wydatki[[#This Row],[Lip]]/tbl_Wydatki[[#Totals],[Lip]] -> 8% | Y11: =tbl_Wydatki[[#This Row],[Sie]]/tbl_Wydatki[[#Totals],[Sie]] -> 1% | Z11: =tbl_Wydatki[[#This Row],[Wrz]]/tbl_Wydatki[[#Totals],[Wrz]] -> 6% | AA11: =tbl_Wydatki[[#This Row],[Paź]]/tbl_Wydatki[[#Totals],[Paź]] -> 8% | AB11: =tbl_Wydatki[[#This Row],[Lis]]/tbl_Wydatki[[#Totals],[Lis]] -> 5% | AC11: =tbl_Wydatki[[#This Row],[Gru]]/tbl_Wydatki[[#Totals],[Gru]] -> 5% | AD11: =tbl_Wydatki[[#This Row],[Rocznie]]/tbl_Wydatki[[#Totals],[Rocznie]] -> 5%
B12: Księgowe i prawne | D12: 5 zł | E12: 13 zł | F12: 6 zł | G12: 15 zł | H12: 19 zł | I12: 10 zł | J12: 12 zł | K12: 9 zł | L12: 15 zł | M12: 16 zł | N12: 4 zł | O12: 9 zł | P12: =SUM(tbl_Wydatki[[#This Row],[Kolumna1]:[Gru]]) -> 133 zł | Q12: 9% | R12: =tbl_Wydatki[[#This Row],[Kolumna1]]/tbl_Wydatki[[#Totals],[Kolumna1]] -> 2% | S12: =tbl_Wydatki[[#This Row],[Lut]]/tbl_Wydatki[[#Totals],[Lut]] -> 6% | T12: =tbl_Wydatki[[#This Row],[Mar]]/tbl_Wydatki[[#Totals],[Mar]] -> 2% | U12: =tbl_Wydatki[[#This Row],[Kwi]]/tbl_Wydatki[[#Totals],[Kwi]] -> 6% | V12: =tbl_Wydatki[[#This Row],[Maj]]/tbl_Wydatki[[#Totals],[Maj]] -> 7% | W12: =tbl_Wydatki[[#This Row],[Cze]]/tbl_Wydatki[[#Totals],[Cze]] -> 4% | X12: =tbl_Wydatki[[#This Row],[Lip]]/tbl_Wydatki[[#Totals],[Lip]] -> 5% | Y12: =tbl_Wydatki[[#This Row],[Sie]]/tbl_Wydatki[[#Totals],[Sie]] -> 4% | Z12: =tbl_Wydatki[[#This Row],[Wrz]]/tbl_Wydatki[[#Totals],[Wrz]] -> 7% | AA12: =tbl_Wydatki[[#This Row],[Paź]]/tbl_Wydatki[[#Totals],[Paź]] -> 6% | AB12: =tbl_Wydatki[[#This Row],[Lis]]/tbl_Wydatki[[#Totals],[Lis]] -> 1% | AC12: =tbl_Wydatki[[#This Row],[Gru]]/tbl_Wydatki[[#Totals],[Gru]] -> 4% | AD12: =tbl_Wydatki[[#This Row],[Rocznie]]/tbl_Wydatki[[#Totals],[Rocznie]] -> 4%
B13: Czynsz | D13: 8 zł | E13: 4 zł | F13: 23 zł | G13: 25 zł | H13: 10 zł | I13: 24 zł | J13: 22 zł | K13: 5 zł | L13: 12 zł | M13: 24 zł | N13: 24 zł | O13: 12 zł | P13: =SUM(tbl_Wydatki[[#This Row],[Kolumna1]:[Gru]]) -> 193 zł | Q13: 1% | R13: =tbl_Wydatki[[#This Row],[Kolumna1]]/tbl_Wydatki[[#Totals],[Kolumna1]] -> 3% | S13: =tbl_Wydatki[[#This Row],[Lut]]/tbl_Wydatki[[#Totals],[Lut]] -> 2% | T13: =tbl_Wydatki[[#This Row],[Mar]]/tbl_Wydatki[[#Totals],[Mar]] -> 9% | U13: =tbl_Wydatki[[#This Row],[Kwi]]/tbl_Wydatki[[#Totals],[Kwi]] -> 10% | V13: =tbl_Wydatki[[#This Row],[Maj]]/tbl_Wydatki[[#Totals],[Maj]] -> 4% | W13: =tbl_Wydatki[[#This Row],[Cze]]/tbl_Wydatki[[#Totals],[Cze]] -> 9% | X13: =tbl_Wydatki[[#This Row],[Lip]]/tbl_Wydatki[[#Totals],[Lip]] -> 8% | Y13: =tbl_Wydatki[[#This Row],[Sie]]/tbl_Wydatki[[#Totals],[Sie]] -> 2% | Z13: =tbl_Wydatki[[#This Row],[Wrz]]/tbl_Wydatki[[#Totals],[Wrz]] -> 5% | AA13: =tbl_Wydatki[[#This Row],[Paź]]/tbl_Wydatki[[#Totals],[Paź]] -> 9% | AB13: =tbl_Wydatki[[#This Row],[Lis]]/tbl_Wydatki[[#Totals],[Lis]] -> 8% | AC13: =tbl_Wydatki[[#This Row],[Gru]]/tbl_Wydatki[[#Totals],[Gru]] -> 5% | AD13: =tbl_Wydatki[[#This Row],[Rocznie]]/tbl_Wydatki[[#Totals],[Rocznie]] -> 6%
B14: Telefon | D14: 25 zł | E14: 2 zł | F14: 12 zł | G14: 25 zł | H14: 10 zł | I14: 24 zł | J14: 3 zł | K14: 20 zł | L14: 3 zł | M14: 9 zł | N14: 20 zł | O14: 18 zł | P14: =SUM(tbl_Wydatki[[#This Row],[Kolumna1]:[Gru]]) -> 171 zł | Q14: 1% | R14: =tbl_Wydatki[[#This Row],[Kolumna1]]/tbl_Wydatki[[#Totals],[Kolumna1]] -> 11% | S14: =tbl_Wydatki[[#This Row],[Lut]]/tbl_Wydatki[[#Totals],[Lut]] -> 1% | T14: =tbl_Wydatki[[#This Row],[Mar]]/tbl_Wydatki[[#Totals],[Mar]] -> 5% | U14: =tbl_Wydatki[[#This Row],[Kwi]]/tbl_Wydatki[[#Totals],[Kwi]] -> 10% | V14: =tbl_Wydatki[[#This Row],[Maj]]/tbl_Wydatki[[#Totals],[Maj]] -> 4% | W14: =tbl_Wydatki[[#This Row],[Cze]]/tbl_Wydatki[[#Totals],[Cze]] -> 9% | X14: =tbl_Wydatki[[#This Row],[Lip]]/tbl_Wydatki[[#Totals],[Lip]] -> 1% | Y14: =tbl_Wydatki[[#This Row],[Sie]]/tbl_Wydatki[[#Totals],[Sie]] -> 9% | Z14: =tbl_Wydatki[[#This Row],[Wrz]]/tbl_Wydatki[[#Totals],[Wrz]] -> 1% | AA14: =tbl_Wydatki[[#This Row],[Paź]]/tbl_Wydatki[[#Totals],[Paź]] -> 3% | AB14: =tbl_Wydatki[[#This Row],[Lis]]/tbl_Wydatki[[#Totals],[Lis]] -> 7% | AC14: =tbl_Wydatki[[#This Row],[Gru]]/tbl_Wydatki[[#Totals],[Gru]] -> 8% | AD14: =tbl_Wydatki[[#This Row],[Rocznie]]/tbl_Wydatki[[#Totals],[Rocznie]] -> 6%
B15: Rachunki | D15: 16 zł | E15: 19 zł | F15: 9 zł | G15: 16 zł | H15: 13 zł | I15: 2 zł | J15: 4 zł | K15: 24 zł | L15: 16 zł | M15: 22 zł | N15: 7 zł | O15: 18 zł | P15: =SUM(tbl_Wydatki[[#This Row],[Kolumna1]:[Gru]]) -> 166 zł | Q15: 1% | R15: =tbl_Wydatki[[#This Row],[Kolumna1]]/tbl_Wydatki[[#Totals],[Kolumna1]] -> 7% | S15: =tbl_Wydatki[[#This Row],[Lut]]/tbl_Wydatki[[#Totals],[Lut]] -> 9% | T15: =tbl_Wydatki[[#This Row],[Mar]]/tbl_Wydatki[[#Totals],[Mar]] -> 4% | U15: =tbl_Wydatki[[#This Row],[Kwi]]/tbl_Wydatki[[#Totals],[Kwi]] -> 6% | V15: =tbl_Wydatki[[#This Row],[Maj]]/tbl_Wydatki[[#Totals],[Maj]] -> 5% | W15: =tbl_Wydatki[[#This Row],[Cze]]/tbl_Wydatki[[#Totals],[Cze]] -> 1% | X15: =tbl_Wydatki[[#This Row],[Lip]]/tbl_Wydatki[[#Totals],[Lip]] -> 2% | Y15: =tbl_Wydatki[[#This Row],[Sie]]/tbl_Wydatki[[#Totals],[Sie]] -> 10% | Z15: =tbl_Wydatki[[#This Row],[Wrz]]/tbl_Wydatki[[#Totals],[Wrz]] -> 7% | AA15: =tbl_Wydatki[[#This Row],[Paź]]/tbl_Wydatki[[#Totals],[Paź]] -> 8% | AB15: =tbl_Wydatki[[#This Row],[Lis]]/tbl_Wydatki[[#Totals],[Lis]] -> 2% | AC15: =tbl_Wydatki[[#This Row],[Gru]]/tbl_Wydatki[[#Totals],[Gru]] -> 8% | AD15: =tbl_Wydatki[[#This Row],[Rocznie]]/tbl_Wydatki[[#Totals],[Rocznie]] -> 6%
B16: Ubezpieczenie | D16: 12 zł | E16: 9 zł | F16: 16 zł | G16: 19 zł | H16: 25 zł | I16: 17 zł | J16: 20 zł | K16: 14 zł | L16: 5 zł | M16: 14 zł | N16: 5 zł | O16: 2 zł | P16: =SUM(tbl_Wydatki[[#This Row],[Kolumna1]:[Gru]]) -> 158 zł | Q16: 1% | R16: =tbl_Wydatki[[#This Row],[Kolumna1]]/tbl_Wydatki[[#Totals],[Kolumna1]] -> 5% | S16: =tbl_Wydatki[[#This Row],[Lut]]/tbl_Wydatki[[#Totals],[Lut]] -> 4% | T16: =tbl_Wydatki[[#This Row],[Mar]]/tbl_Wydatki[[#Totals],[Mar]] -> 6% | U16: =tbl_Wydatki[[#This Row],[Kwi]]/tbl_Wydatki[[#Totals],[Kwi]] -> 7% | V16: =tbl_Wydatki[[#This Row],[Maj]]/tbl_Wydatki[[#Totals],[Maj]] -> 10% | W16: =tbl_Wydatki[[#This Row],[Cze]]/tbl_Wydatki[[#Totals],[Cze]] -> 6% | X16: =tbl_Wydatki[[#This Row],[Lip]]/tbl_Wydatki[[#Totals],[Lip]] -> 8% | Y16: =tbl_Wydatki[[#This Row],[Sie]]/tbl_Wydatki[[#Totals],[Sie]] -> 6% | Z16: =tbl_Wydatki[[#This Row],[Wrz]]/tbl_Wydatki[[#Totals],[Wrz]] -> 2% | AA16: =tbl_Wydatki[[#This Row],[Paź]]/tbl_Wydatki[[#Totals],[Paź]] -> 5% | AB16: =tbl_Wydatki[[#This Row],[Lis]]/tbl_Wydatki[[#Totals],[Lis]] -> 2% | AC16: =tbl_Wydatki[[#This Row],[Gru]]/tbl_Wydatki[[#Totals],[Gru]] -> 1% | AD16: =tbl_Wydatki[[#This Row],[Rocznie]]/tbl_Wydatki[[#Totals],[Rocznie]] -> 5%
B17: Podatki (nieruchomości itp.) | D17: 16 zł | E17: 13 zł | F17: 10 zł | G17: 7 zł | H17: 13 zł | I17: 3 zł | J17: 13 zł | K17: 17 zł | L17: 9 zł | M17: 4 zł | N17: 22 zł | O17: 18 zł | P17: =SUM(tbl_Wydatki[[#This Row],[Kolumna1]:[Gru]]) -> 145 zł | Q17: 14% | R17: =tbl_Wydatki[[#This Row],[Kolumna1]]/tbl_Wydatki[[#Totals],[Kolumna1]] -> 7% | S17: =tbl_Wydatki[[#This Row],[Lut]]/tbl_Wydatki[[#Totals],[Lut]] -> 6% | T17: =tbl_Wydatki[[#This Row],[Mar]]/tbl_Wydatki[[#Totals],[Mar]] -> 4% | U17: =tbl_Wydatki[[#This Row],[Kwi]]/tbl_Wydatki[[#Totals],[Kwi]] -> 3% | V17: =tbl_Wydatki[[#This Row],[Maj]]/tbl_Wydatki[[#Totals],[Maj]] -> 5% | W17: =tbl_Wydatki[[#This Row],[Cze]]/tbl_Wydatki[[#Totals],[Cze]] -> 1% | X17: =tbl_Wydatki[[#This Row],[Lip]]/tbl_Wydatki[[#Totals],[Lip]] -> 5% | Y17: =tbl_Wydatki[[#This Row],[Sie]]/tbl_Wydatki[[#Totals],[Sie]] -> 7% | Z17: =tbl_Wydatki[[#This Row],[Wrz]]/tbl_Wydatki[[#Totals],[Wrz]] -> 4% | AA17: =tbl_Wydatki[[#This Row],[Paź]]/tbl_Wydatki[[#Totals],[Paź]] -> 2% | AB17: =tbl_Wydatki[[#This Row],[Lis]]/tbl_Wydatki[[#Totals],[Lis]] -> 7% | AC17: =tbl_Wydatki[[#This Row],[Gru]]/tbl_Wydatki[[#Totals],[Gru]] -> 8% | AD17: =tbl_Wydatki[[#This Row],[Rocznie]]/tbl_Wydatki[[#Totals],[Rocznie]] -> 5%
B18: Odsetki | D18: 3 zł | E18: 2 zł | F18: 19 zł | G18: 21 zł | H18: 13 zł | I18: 9 zł | J18: 7 zł | K18: 13 zł | L18: 3 zł | M18: 6 zł | N18: 10 zł | O18: 13 zł | P18: =SUM(tbl_Wydatki[[#This Row],[Kolumna1]:[Gru]]) -> 119 zł | Q18: 6% | R18: =tbl_Wydatki[[#This Row],[Kolumna1]]/tbl_Wydatki[[#Totals],[Kolumna1]] -> 1% | S18: =tbl_Wydatki[[#This Row],[Lut]]/tbl_Wydatki[[#Totals],[Lut]] -> 1% | T18: =tbl_Wydatki[[#This Row],[Mar]]/tbl_Wydatki[[#Totals],[Mar]] -> 8% | U18: =tbl_Wydatki[[#This Row],[Kwi]]/tbl_Wydatki[[#Totals],[Kwi]] -> 8% | V18: =tbl_Wydatki[[#This Row],[Maj]]/tbl_Wydatki[[#Totals],[Maj]] -> 5% | W18: =tbl_Wydatki[[#This Row],[Cze]]/tbl_Wydatki[[#Totals],[Cze]] -> 3% | X18: =tbl_Wydatki[[#This Row],[Lip]]/tbl_Wydatki[[#Totals],[Lip]] -> 3% | Y18: =tbl_Wydatki[[#This Row],[Sie]]/tbl_Wydatki[[#Totals],[Sie]] -> 6% | Z18: =tbl_Wydatki[[#This Row],[Wrz]]/tbl_Wydatki[[#Totals],[Wrz]] -> 1% | AA18: =tbl_Wydatki[[#This Row],[Paź]]/tbl_Wydatki[[#Totals],[Paź]] -> 2% | AB18: =tbl_Wydatki[[#This Row],[Lis]]/tbl_Wydatki[[#Totals],[Lis]] -> 3% | AC18: =tbl_Wydatki[[#This Row],[Gru]]/tbl_Wydatki[[#Totals],[Gru]] -> 6% | AD18: =tbl_Wydatki[[#This Row],[Rocznie]]/tbl_Wydatki[[#Totals],[Rocznie]] -> 4%
B19: Amortyzacja | D19: 8 zł | E19: 7 zł | F19: 6 zł | G19: 7 zł | H19: 7 zł | I19: 6 zł | J19: 15 zł | K19: 23 zł | L19: 21 zł | M19: 16 zł | N19: 19 zł | O19: 7 zł | P19: =SUM(tbl_Wydatki[[#This Row],[Kolumna1]:[Gru]]) -> 142 zł | Q19: 1% | R19: =tbl_Wydatki[[#This Row],[Kolumna1]]/tbl_Wydatki[[#Totals],[Kolumna1]] -> 3% | S19: =tbl_Wydatki[[#This Row],[Lut]]/tbl_Wydatki[[#Totals],[Lut]] -> 3% | T19: =tbl_Wydatki[[#This Row],[Mar]]/tbl_Wydatki[[#Totals],[Mar]] -> 2% | U19: =tbl_Wydatki[[#This Row],[Kwi]]/tbl_Wydatki[[#Totals],[Kwi]] -> 3% | V19: =tbl_Wydatki[[#This Row],[Maj]]/tbl_Wydatki[[#Totals],[Maj]] -> 3% | W19: =tbl_Wydatki[[#This Row],[Cze]]/tbl_Wydatki[[#Totals],[Cze]] -> 2% | X19: =tbl_Wydatki[[#This Row],[Lip]]/tbl_Wydatki[[#Totals],[Lip]] -> 6% | Y19: =tbl_Wydatki[[#This Row],[Sie]]/tbl_Wydatki[[#Totals],[Sie]] -> 10% | Z19: =tbl_Wydatki[[#This Row],[Wrz]]/tbl_Wydatki[[#Totals],[Wrz]] -> 9% | AA19: =tbl_Wydatki[[#This Row],[Paź]]/tbl_Wydatki[[#Totals],[Paź]] -> 6% | AB19: =tbl_Wydatki[[#This Row],[Lis]]/tbl_Wydatki[[#Totals],[Lis]] -> 6% | AC19: =tbl_Wydatki[[#This Row],[Gru]]/tbl_Wydatki[[#Totals],[Gru]] -> 3% | AD19: =tbl_Wydatki[[#This Row],[Rocznie]]/tbl_Wydatki[[#Totals],[Rocznie]] -> 5%
B20: Inne wydatki (określ) | D20: 14 zł | E20: 4 zł | F20: 24 zł | G20: 6 zł | H20: 20 zł | I20: 14 zł | J20: 21 zł | K20: 20 zł | L20: 22 zł | M20: 3 zł | N20: 14 zł | O20: 6 zł | P20: =SUM(tbl_Wydatki[[#This Row],[Kolumna1]:[Gru]]) -> 168 zł | Q20: 1% | R20: =tbl_Wydatki[[#This Row],[Kolumna1]]/tbl_Wydatki[[#Totals],[Kolumna1]] -> 6% | S20: =tbl_Wydatki[[#This Row],[Lut]]/tbl_Wydatki[[#Totals],[Lut]] -> 2% | T20: =tbl_Wydatki[[#This Row],[Mar]]/tbl_Wydatki[[#Totals],[Mar]] -> 10% | U20: =tbl_Wydatki[[#This Row],[Kwi]]/tbl_Wydatki[[#Totals],[Kwi]] -> 2% | V20: =tbl_Wydatki[[#This Row],[Maj]]/tbl_Wydatki[[#Totals],[Maj]] -> 8% | W20: =tbl_Wydatki[[#This Row],[Cze]]/tbl_Wydatki[[#Totals],[Cze]] -> 5% | X20: =tbl_Wydatki[[#This Row],[Lip]]/tbl_Wydatki[[#Totals],[Lip]] -> 8% | Y20: =tbl_Wydatki[[#This Row],[Sie]]/tbl_Wydatki[[#Totals],[Sie]] -> 9% | Z20: =tbl_Wydatki[[#This Row],[Wrz]]/tbl_Wydatki[[#Totals],[Wrz]] -> 10% | AA20: =tbl_Wydatki[[#This Row],[Paź]]/tbl_Wydatki[[#Totals],[Paź]] -> 1% | AB20: =tbl_Wydatki[[#This Row],[Lis]]/tbl_Wydatki[[#Totals],[Lis]] -> 5% | AC20: =tbl_Wydatki[[#This Row],[Gru]]/tbl_Wydatki[[#Totals],[Gru]] -> 3% | AD20: =tbl_Wydatki[[#This Row],[Rocznie]]/tbl_Wydatki[[#Totals],[Rocznie]] -> 6%
B21: Inne wydatki (określ) | D21: 14 zł | E21: 7 zł | F21: 24 zł | G21: 10 zł | H21: 7 zł | I21: 24 zł | J21: 2 zł | K21: 11 zł | L21: 21 zł | M21: 19 zł | N21: 19 zł | O21: 20 zł | P21: =SUM(tbl_Wydatki[[#This Row],[Kolumna1]:[Gru]]) -> 178 zł | Q21: 1% | R21: =tbl_Wydatki[[#This Row],[Kolumna1]]/tbl_Wydatki[[#Totals],[Kolumna1]] -> 6% | S21: =tbl_Wydatki[[#This Row],[Lut]]/tbl_Wydatki[[#Totals],[Lut]] -> 3% | T21: =tbl_Wydatki[[#This Row],[Mar]]/tbl_Wydatki[[#Totals],[Mar]] -> 10% | U21: =tbl_Wydatki[[#This Row],[Kwi]]/tbl_Wydatki[[#Totals],[Kwi]] -> 4% | V21: =tbl_Wydatki[[#This Row],[Maj]]/tbl_Wydatki[[#Totals],[Maj]] -> 3% | W21: =tbl_Wydatki[[#This Row],[Cze]]/tbl_Wydatki[[#Totals],[Cze]] -> 9% | X21: =tbl_Wydatki[[#This Row],[Lip]]/tbl_Wydatki[[#Totals],[Lip]] -> 1% | Y21: =tbl_Wydatki[[#This Row],[Sie]]/tbl_Wydatki[[#Totals],[Sie]] -> 5% | Z21: =tbl_Wydatki[[#This Row],[Wrz]]/tbl_Wydatki[[#Totals],[Wrz]] -> 9% | AA21: =tbl_Wydatki[[#This Row],[Paź]]/tbl_Wydatki[[#Totals],[Paź]] -> 7% | AB21: =tbl_Wydatki[[#This Row],[Lis]]/tbl_Wydatki[[#Totals],[Lis]] -> 6% | AC21: =tbl_Wydatki[[#This Row],[Gru]]/tbl_Wydatki[[#Totals],[Gru]] -> 9% | AD21: =tbl_Wydatki[[#This Row],[Rocznie]]/tbl_Wydatki[[#Totals],[Rocznie]] -> 6%
B22: Inne wydatki (określ) | D22: 11 zł | E22: 8 zł | F22: 25 zł | G22: 11 zł | H22: 9 zł | I22: 24 zł | J22: 13 zł | K22: 14 zł | L22: 19 zł | M22: 24 zł | N22: 15 zł | O22: 7 zł | P22: =SUM(tbl_Wydatki[[#This Row],[Kolumna1]:[Gru]]) -> 180 zł | Q22: 1% | R22: =tbl_Wydatki[[#This Row],[Kolumna1]]/tbl_Wydatki[[#Totals],[Kolumna1]] -> 5% | S22: =tbl_Wydatki[[#This Row],[Lut]]/tbl_Wydatki[[#Totals],[Lut]] -> 4% | T22: =tbl_Wydatki[[#This Row],[Mar]]/tbl_Wydatki[[#Totals],[Mar]] -> 10% | U22: =tbl_Wydatki[[#This Row],[Kwi]]/tbl_Wydatki[[#Totals],[Kwi]] -> 4% | V22: =tbl_Wydatki[[#This Row],[Maj]]/tbl_Wydatki[[#Totals],[Maj]] -> 4% | W22: =tbl_Wydatki[[#This Row],[Cze]]/tbl_Wydatki[[#Totals],[Cze]] -> 9% | X22: =tbl_Wydatki[[#This Row],[Lip]]/tbl_Wydatki[[#Totals],[Lip]] -> 5% | Y22: =tbl_Wydatki[[#This Row],[Sie]]/tbl_Wydatki[[#Totals],[Sie]] -> 6% | Z22: =tbl_Wydatki[[#This Row],[Wrz]]/tbl_Wydatki[[#Totals],[Wrz]] -> 8% | AA22: =tbl_Wydatki[[#This Row],[Paź]]/tbl_Wydatki[[#Totals],[Paź]] -> 9% | AB22: =tbl_Wydatki[[#This Row],[Lis]]/tbl_Wydatki[[#Totals],[Lis]] -> 5% | AC22: =tbl_Wydatki[[#This Row],[Gru]]/tbl_Wydatki[[#Totals],[Gru]] -> 3% | AD22: =tbl_Wydatki[[#This Row],[Rocznie]]/tbl_Wydatki[[#Totals],[Rocznie]] -> 6%
B23: Różne (nieokreślone) | D23: 8 zł | E23: 20 zł | F23: 11 zł | G23: 11 zł | H23: 11 zł | I23: 20 zł | J23: 12 zł | K23: 16 zł | L23: 5 zł | M23: 7 zł | N23: 21 zł | O23: 3 zł | P23: =SUM(tbl_Wydatki[[#This Row],[Kolumna1]:[Gru]]) -> 145 zł | Q23: 2% | R23: =tbl_Wydatki[[#This Row],[Kolumna1]]/tbl_Wydatki[[#Totals],[Kolumna1]] -> 3% | S23: =tbl_Wydatki[[#This Row],[Lut]]/tbl_Wydatki[[#Totals],[Lut]] -> 10% | T23: =tbl_Wydatki[[#This Row],[Mar]]/tbl_Wydatki[[#Totals],[Mar]] -> 4% | U23: =tbl_Wydatki[[#This Row],[Kwi]]/tbl_Wydatki[[#Totals],[Kwi]] -> 4% | V23: =tbl_Wydatki[[#This Row],[Maj]]/tbl_Wydatki[[#Totals],[Maj]] -> 4% | W23: =tbl_Wydatki[[#This Row],[Cze]]/tbl_Wydatki[[#Totals],[Cze]] -> 7% | X23: =tbl_Wydatki[[#This Row],[Lip]]/tbl_Wydatki[[#Totals],[Lip]] -> 5% | Y23: =tbl_Wydatki[[#This Row],[Sie]]/tbl_Wydatki[[#Totals],[Sie]] -> 7% | Z23: =tbl_Wydatki[[#This Row],[Wrz]]/tbl_Wydatki[[#Totals],[Wrz]] -> 2% | AA23: =tbl_Wydatki[[#This Row],[Paź]]/tbl_Wydatki[[#Totals],[Paź]] -> 3% | AB23: =tbl_Wydatki[[#This Row],[Lis]]/tbl_Wydatki[[#Totals],[Lis]] -> 7% | AC23: =tbl_Wydatki[[#This Row],[Gru]]/tbl_Wydatki[[#Totals],[Gru]] -> 1% | AD23: =tbl_Wydatki[[#This Row],[Rocznie]]/tbl_Wydatki[[#Totals],[Rocznie]] -> 5%
B24: WYDATKI RAZEM | D24: =SUBTOTAL(109,tbl_Wydatki[Kolumna1]) -> 236 zł | E24: =SUBTOTAL(109,tbl_Wydatki[Lut]) -> 205 zł | F24: =SUBTOTAL(109,tbl_Wydatki[Mar]) -> 249 zł | G24: =SUBTOTAL(109,tbl_Wydatki[Kwi]) -> 261 zł | H24: =SUBTOTAL(109,tbl_Wydatki[Maj]) -> 257 zł | I24: =SUBTOTAL(109,tbl_Wydatki[Cze]) -> 274 zł | J24: =SUBTOTAL(109,tbl_Wydatki[Lip]) -> 266 zł | K24: =SUBTOTAL(109,tbl_Wydatki[Sie]) -> 235 zł | L24: =SUBTOTAL(109,tbl_Wydatki[Wrz]) -> 230 zł | M24: =SUBTOTAL(109,tbl_Wydatki[Paź]) -> 259 zł | N24: =SUBTOTAL(109,tbl_Wydatki[Lis]) -> 296 zł | O24: =SUBTOTAL(109,tbl_Wydatki[Gru]) -> 231 zł | P24: =SUBTOTAL(109,tbl_Wydatki[Rocznie]) -> 2,999 zł | Q24: =SUBTOTAL(109,tbl_Wydatki[% indeksu]) -> 100% | R24: =SUBTOTAL(109,tbl_Wydatki[Sty %]) -> 100% | S24: =SUBTOTAL(109,tbl_Wydatki[Lut %]) -> 100% | T24: =SUBTOTAL(109,tbl_Wydatki[Mar %]) -> 100% | U24: =SUBTOTAL(109,tbl_Wydatki[Kwi %]) -> 100% | V24: =SUBTOTAL(109,tbl_Wydatki[Maj %]) -> 100% | W24: =SUBTOTAL(109,tbl_Wydatki[Cze %]) -> 100% | X24: =SUBTOTAL(109,tbl_Wydatki[Lip %]) -> 100% | Y24: =SUBTOTAL(109,tbl_Wydatki[Sie %]) -> 100% | Z24: =SUBTOTAL(109,tbl_Wydatki[Wrz %]) -> 100% | AA24: =SUBTOTAL(109,tbl_Wydatki[Paź %]) -> 100% | AB24: =SUBTOTAL(109,tbl_Wydatki[Lis %]) -> 100% | AC24: =SUBTOTAL(109,tbl_Wydatki[Gru %]) -> 100% | AD24: =SUBTOTAL(109,tbl_Wydatki[Rok %]) -> 100%
B26: Zysk netto | D26: ='Koszt sprzedaży'!$D$14-tbl_Wydatki[[#Totals],[Kolumna1]] -> 123 zł | E26: ='Koszt sprzedaży'!E14-tbl_Wydatki[[#Totals],[Lut]] -> 175 zł | F26: ='Koszt sprzedaży'!F14-tbl_Wydatki[[#Totals],[Mar]] -> 256 zł | G26: ='Koszt sprzedaży'!G14-tbl_Wydatki[[#Totals],[Kwi]] -> 109 zł | H26: ='Koszt sprzedaży'!H14-tbl_Wydatki[[#Totals],[Maj]] -> 156 zł | I26: ='Koszt sprzedaży'!I14-tbl_Wydatki[[#Totals],[Cze]] -> -8 zł | J26: ='Koszt sprzedaży'!J14-tbl_Wydatki[[#Totals],[Lip]] -> 32 zł | K26: ='Koszt sprzedaży'!K14-tbl_Wydatki[[#Totals],[Sie]] -> 214 zł | L26: ='Koszt sprzedaży'!L14-tbl_Wydatki[[#Totals],[Wrz]] -> 100 zł | M26: ='Koszt sprzedaży'!M14-tbl_Wydatki[[#Totals],[Paź]] -> 148 zł | N26: ='Koszt sprzedaży'!N14-tbl_Wydatki[[#Totals],[Lis]] -> 179 zł | O26: ='Koszt sprzedaży'!O14-tbl_Wydatki[[#Totals],[Gru]] -> 359 zł | P26: ='Koszt sprzedaży'!P14-tbl_Wydatki[[#Totals],[Rocznie]] -> 1,843 zł | R26: =D26/$P$26 -> 7% | S26: =E26/$P$26 -> 9% | T26: 14% | U26: 6% | V26: 8% | W26: -0% | X26: 2% | Y26: 12% | Z26: 5% | AA26: 8% | AB26: 10% | AC26: 19% | AD26: 100%
